bitfinex-derivatives/quotes_BTCF0:USTF0_20250926
["timestamp","ask_amount","ask_price","bid_price","bid_amount"]
[1758889158223,0.002,109060.0,109050.0,2.09769806]
[1758889158923,0.0936275,109060.0,109050.0,2.09769806]
[1758889159220,0.0936275,109060.0,109050.0,2.09765806]
[1758889160630,0.0936275,109060.0,109050.0,1.7436464]
[1758889160935,0.44763916,109060.0,109050.0,2.09765806]
[1758889161230,0.44763916,109060.0,109050.0,1.24233806]
[1758889161529,0.48302916,109060.0,109050.0,1.59108166]
[1758889161730,0.46990916,109060.0,109050.0,1.60410166]
[1758889162533,0.1158975,109060.0,109050.0,1.60410166]
[1758889162735,0.1158975,109060.0,109050.0,1.69573756]
[1758889162925,0.46990916,109060.0,109050.0,1.69573756]
[1758889163835,0.46990916,109060.0,109050.0,0.84153756]
[1758889164028,0.46990916,109060.0,109050.0,1.69589756]
[1758889164724,0.46990916,109060.0,109050.0,0.84153756]
[1758889164920,0.46990916,109060.0,109050.0,0.74990166]
[1758889165127,0.46990916,109060.0,109040.0,0.88609298]
[1758889165128,1.59784082,109060.0,109040.0,0.44044362]
[1758889165430,0.48103756,109050.0,109040.0,1.76380948]
[1758889165733,0.48103756,109050.0,109040.0,0.90816948]
[1758889165933,0.48103756,109050.0,109040.0,1.76376948]
[1758889167028,0.48103756,109050.0,109040.0,1.76876948]
[1758889167228,0.55355537,109050.0,109040.0,1.76876948]
[1758889167833,0.54043537,109050.0,109040.0,1.76876948]
[1758889168031,0.55355537,109050.0,109040.0,0.46751362]
[1758889168227,0.95355537,109050.0,109040.0,0.45465362]
[1758889168820,0.95355537,109050.0,109040.0,0.45365362]
[1758889169027,0.95355537,109050.0,109040.0,0.02807]
[1758889169230,1.80891537,109050.0,109040.0,0.02807]
[1758889169927,1.80891537,109050.0,109040.0,0.02307]
[1758889170122,1.81591537,109050.0,109040.0,0.02307]
[1758889170532,2.17671537,109050.0,109040.0,0.02307]
[1758889170728,2.17643537,109050.0,109040.0,0.02307]
[1758889170930,2.17835537,109050.0,109040.0,0.02207]
[1758889172234,0.1268243,109040.0,109030.0,0.94339362]
[1758889172432,0.83484762,109040.0,109030.0,0.02269]
[1758889173737,0.83584762,109040.0,109030.0,0.02269]
[1758889175238,0.48183596,109040.0,109030.0,0.02269]
[1758889177240,1.19664762,109040.0,109030.0,0.02269]
[1758889177441,0.83584762,109040.0,109030.0,0.02269]
[1758889178341,0.48183596,109040.0,109030.0,0.03636]
[1758889178539,0.1278243,109040.0,109030.0,0.39037166]
[1758889178739,1.33527596,109040.0,109030.0,0.39037166]
[1758889178937,1.33527596,109040.0,109030.0,0.03636]
[1758889179234,2.05008762,109040.0,109030.0,0.02269]
[1758889179640,1.68928762,109040.0,109030.0,0.02269]
[1758889179846,0.9812643,109040.0,109030.0,0.02269]
[1758889180142,0.9812643,109040.0,109030.0,0.03536]
[1758889180343,1.33527596,109040.0,109030.0,0.03536]
[1758889180538,1.33527596,109040.0,109030.0,0.48102436]
[1758889181243,1.33527596,109040.0,109030.0,0.1270127]
[1758889181438,1.33527596,109040.0,109030.0,0.48102436]
[1758889182546,1.33527596,109040.0,109030.0,0.38937166]
[1758889183039,1.68928762,109040.0,109030.0,0.38937166]
[1758889183236,1.68928762,109040.0,109030.0,0.03536]
[1758889183442,1.68928762,109040.0,109030.0,0.02269]
[1758889183642,0.1136727,109030.0,109020.0,0.84217626]
[1758889183837,0.46768436,109030.0,109020.0,0.84217626]
[1758889184642,0.46768436,109030.0,109020.0,0.4881646]
[1758889184951,0.48084436,109030.0,109020.0,0.38949]
[1758889185151,0.49946689,109030.0,109020.0,0.38949]
[1758889185453,0.48084436,109030.0,109020.0,0.4811513]
[1758889186147,1.33404436,109030.0,109020.0,0.4811513]
[1758889186855,0.1136727,109030.0,109020.0,0.40216]
[1758889187064,1.32060436,109030.0,109020.0,0.84783296]
[1758889187247,0.1136729,109030.0,109020.0,1.60184462]
[1758889187860,0.1136729,109030.0,109020.0,2.45508462]
[1758889188060,0.1136679,109040.0,109030.0,0.1270128]
[1758889188262,0.1136679,109040.0,109030.0,0.48102446]
[1758889188762,0.46767956,109040.0,109030.0,0.38937166]
[1758889189062,0.46767956,109040.0,109030.0,0.48098456]
[1758889190556,0.1136679,109040.0,109030.0,0.48098456]
[1758889191165,0.1146679,109040.0,109030.0,0.48098456]
[1758889192958,0.46867956,109040.0,109030.0,0.48098456]
[1758889193165,0.02302,109040.0,109030.0,0.48098456]
[1758889193463,0.02302,109040.0,109030.0,1.66157984]
[1758889193464,0.001,109040.0,109030.0,1.66157984]
[1758889193655,0.001,109040.0,109030.0,1.24178456]
[1758889193858,0.001,109040.0,109030.0,1.66157984]
[1758889194058,0.001,109040.0,109030.0,1.7532935]
[1758889194359,0.001,109040.0,109030.0,1.68750988]
[1758889194566,0.001,109040.0,109030.0,2.54022988]
[1758889194763,0.07251781,109050.0,109040.0,0.1270045]
[1758889194963,0.0916346,109060.0,109050.0,0.1269961]
[1758889195258,0.0916346,109060.0,109050.0,1.69436776]
[1758889195561,1.32936132,109070.0,109060.0,0.1269877]
[1758889195758,1.32936132,109070.0,109060.0,0.48099936]
[1758889196065,1.32936132,109070.0,109060.0,0.1269877]
[1758889197467,1.33136132,109070.0,109060.0,0.1269877]
[1758889197668,1.32209556,109070.0,109060.0,0.48099936]
[1758889197862,0.46965556,109070.0,109060.0,0.48099936]
[1758889198069,0.46965556,109070.0,109060.0,0.1269877]
[1758889198262,0.47865556,109070.0,109060.0,0.48099936]
[1758889198569,0.1246439,109070.0,109060.0,0.1269877]
[1758889199064,0.1246439,109070.0,109060.0,0.03536]
[1758889199666,0.13397552,109070.0,109060.0,0.03536]
[1758889200571,0.98004439,109070.0,109060.0,0.02269]
[1758889201371,0.98004439,109070.0,109060.0,0.03536]
[1758889201558,0.98004439,109070.0,109060.0,0.1269879]
[1758889201763,0.98004439,109070.0,109060.0,0.02269]
[1758889203068,0.091628,109060.0,109050.0,0.3608]
[1758889203371,0.1044364,109050.0,109040.0,1.3404584]
[1758889203572,0.65010397,109050.0,109040.0,1.3404584]
[1758889204368,0.67295397,109050.0,109040.0,0.03574]
[1758889204570,0.67295397,109050.0,109040.0,0.02307]
[1758889204766,0.67295397,109050.0,109040.0,0.1147148]
[1758889205266,0.67295397,109050.0,109040.0,0.02307]
[1758889205467,1.43375397,109050.0,109040.0,0.02307]
[1758889205668,1.43375397,109050.0,109040.0,0.02507]
[1758889205868,2.28603397,109050.0,109040.0,0.02507]
[1758889206373,2.28603397,109050.0,109040.0,0.02607]
[1758889207174,2.28603397,109050.0,109040.0,0.02507]
[1758889207375,2.28803397,109050.0,109040.0,0.002]
[1758889207674,0.127533,109030.0,109020.0,0.1253914]
[1758889207874,0.58678187,109030.0,109020.0,0.1253914]
[1758889208066,0.114673,109030.0,109020.0,0.03373]
[1758889208463,0.114673,109030.0,109010.0,0.91156687]
[1758889208464,0.1275414,109020.0,109010.0,0.460518]
[1758889208666,0.59965027,109020.0,109010.0,0.02106]
[1758889208968,0.59965027,109020.0,109000.0,0.086878]
[1758889208969,0.1275498,109010.0,109000.0,0.086878]
[1758889209277,0.1275498,109010.0,109000.0,0.02106]
[1758889209278,0.95845867,109010.0,109000.0,0.02106]
[1758889209464,0.95845867,109010.0,108990.0,0.01346]
[1758889209669,0.95845867,109010.0,108980.0,0.440078]
[1758889209670,0.1275667,108990.0,108980.0,0.38186]
[1758889209869,0.1195667,108990.0,108980.0,0.03452]
[1758889210171,0.59067557,108990.0,108980.0,0.02106]
[1758889210379,0.1057067,108990.0,108980.0,0.1262151]
[1758889210679,0.1057067,108990.0,108980.0,0.03452]
[1758889211376,0.6633946,108990.0,108980.0,0.03452]
[1758889212275,0.67231844,108990.0,108980.0,0.03452]
[1758889212575,0.67231844,108990.0,108980.0,0.02106]
[1758889212576,0.68731844,108990.0,108980.0,0.02106]
[1758889213275,0.19342573,108990.0,108980.0,0.03452]
[1758889213479,0.17040573,108990.0,108980.0,0.99832397]
[1758889213977,0.19342573,108990.0,108980.0,0.99832397]
[1758889216979,0.47130704,109020.0,108980.0,2.30435971]
[1758889217280,0.96961834,109020.0,109010.0,0.02106]
[1758889217875,0.1275498,109010.0,109000.0,0.02106]
[1758889218177,0.59965867,109010.0,109000.0,0.02106]
[1758889218383,0.96045867,109010.0,109000.0,0.02106]
[1758889218878,0.1275582,109000.0,108990.0,0.38186]
[1758889219076,0.1275582,109000.0,108990.0,0.02106]
[1758889219077,0.67469707,109000.0,108990.0,0.02106]
[1758889219776,0.1897282,109000.0,108990.0,0.4870066]
[1758889219983,0.09805,109000.0,108990.0,1.35911547]
[1758889220176,0.07503,109000.0,108990.0,1.35911547]
[1758889220368,0.014,109000.0,108990.0,1.35911547]
[1758889220772,0.016,109000.0,108990.0,1.35911547]
[1758889221177,0.016,109000.0,108990.0,0.8870066]
[1758889221384,0.03902,109000.0,108990.0,1.35911547]
[1758889221777,0.016,109000.0,108990.0,1.35911547]
[1758889222283,0.002,109000.0,108990.0,1.35911547]
[1758889222484,0.004,109000.0,108990.0,1.35911547]
[1758889222783,0.0936782,109000.0,108990.0,0.8870066]
[1758889222983,0.1166982,109000.0,108990.0,0.8870066]
[1758889223884,0.20466154,109000.0,108990.0,1.3398066]
[1758889224187,0.19180154,109000.0,108990.0,1.3398066]
[1758889225482,0.16878154,109000.0,108990.0,1.3398066]
[1758889226387,0.07710334,109000.0,108990.0,2.17989728]
[1758889226782,0.07710334,109000.0,108990.0,2.2716446]
[1758889226988,0.002,109000.0,108990.0,2.2716446]
[1758889227189,0.1275388,109030.0,109020.0,0.1261814]
[1758889227392,0.20140426,109030.0,109020.0,0.1261814]
[1758889228182,0.20140426,109030.0,109020.0,0.1127214]
[1758889228386,0.20140426,109030.0,109020.0,0.1261814]
[1758889229875,0.20140426,109030.0,109020.0,0.02106]
[1758889230291,0.21640426,109030.0,109020.0,0.02106]
[1758889230587,0.20140426,109030.0,109020.0,0.1261814]
[1758889230780,0.21426426,109030.0,109020.0,0.03452]
[1758889231588,0.21426426,109030.0,109020.0,0.02106]
[1758889231782,0.1275414,109020.0,109010.0,0.88724]
[1758889231978,0.56763208,109020.0,109010.0,0.02106]
[1758889232283,0.1265998,109010.0,109000.0,0.0213]
[1758889232485,0.56669048,109010.0,109000.0,0.0213]
[1758889232689,0.1265998,109010.0,109000.0,0.0213]
[1758889232890,0.4873998,109010.0,109000.0,0.0213]
[1758889233294,0.1266084,109000.0,108990.0,1.24848]
[1758889233983,0.1266084,109000.0,108990.0,1.3401668]
[1758889234785,0.1266084,109000.0,108990.0,1.3461668]
[1758889235293,0.1266084,109000.0,108990.0,0.89368]
[1758889235685,0.1266084,109000.0,108990.0,0.0273]
[1758889236186,0.1266084,109000.0,108990.0,0.0283]
[1758889236595,0.5266084,109000.0,108990.0,0.0283]
[1758889236798,1.32749908,109000.0,108990.0,0.007]
[1758889236986,1.32749908,109000.0,108990.0,0.006]
[1758889237280,1.32949908,109000.0,108990.0,0.006]
[1758889237486,2.20595085,109000.0,108990.0,0.006]
[1758889237888,0.0916917,108990.0,108980.0,0.0916946]
[1758889238192,0.1266217,108990.0,108980.0,0.1260946]
[1758889238588,0.1139217,108990.0,108980.0,0.1260946]
[1758889238785,0.1139217,108990.0,108980.0,0.4868946]
[1758889239184,0.18636933,108990.0,108980.0,0.4868946]
[1758889240092,0.18836933,108990.0,108980.0,0.4868946]
[1758889240597,0.19436933,108990.0,108980.0,0.4868946]
[1758889240895,0.19236933,108990.0,108980.0,0.4868946]
[1758889241092,0.18636933,108990.0,108980.0,0.4868946]
[1758889246490,0.07244763,108990.0,108980.0,1.32698528]
[1758889246696,0.0916866,108990.0,108980.0,2.17970528]
[1758889247299,0.0916866,108990.0,108980.0,1.7396146]
[1758889247491,0.0916866,108990.0,108980.0,0.4868946]
[1758889247492,0.1139166,108990.0,108980.0,0.4868946]
[1758889247692,0.1139166,108990.0,108980.0,0.9788146]
[1758889248002,0.1139166,108990.0,108980.0,1.3396146]
[1758889248200,0.18852805,108990.0,108980.0,0.9788146]
[1758889248498,0.18852805,108990.0,108980.0,1.3396146]
[1758889248699,0.18852805,108990.0,108980.0,0.9788146]
[1758889248902,0.18852805,108990.0,108980.0,1.3396146]
[1758889250106,0.19052805,108990.0,108980.0,1.3396146]
[1758889250600,0.19052805,108990.0,108980.0,0.4868946]
[1758889250906,0.20122805,108990.0,108980.0,0.4868946]
[1758889251202,0.20122805,108990.0,108980.0,1.3265146]
[1758889251404,0.56202805,108990.0,108980.0,0.1129946]
[1758889251701,0.56802805,108990.0,108980.0,0.1129946]
[1758889252802,1.01724324,108990.0,108980.0,0.0213]
[1758889253302,0.57915256,108990.0,108980.0,0.0213]
[1758889254501,0.19652805,108990.0,108980.0,0.1260952]
[1758889254802,0.10484145,108990.0,108980.0,0.4868952]
[1758889255704,0.08261145,108990.0,108980.0,0.4868952]
[1758889255896,0.08261145,108990.0,108980.0,0.92698588]
[1758889256296,0.08261145,108990.0,108980.0,0.4868952]
[1758889257197,0.17229805,108990.0,108980.0,0.92698588]
[1758889257406,0.16629805,108990.0,108980.0,0.92698588]
[1758889258195,0.16629805,108990.0,108980.0,0.4868952]
[1758889258603,0.16629805,108990.0,108980.0,1.04083395]
[1758889259892,0.16629805,108990.0,108980.0,1.89491395]
[1758889260096,0.07461145,108990.0,108980.0,1.89491395]
[1758889260293,0.1139082,109000.0,108990.0,0.1260866]
[1758889260503,0.1139082,109000.0,108990.0,1.04082535]
[1758889261297,0.1139082,109000.0,108990.0,0.4868866]
[1758889261706,0.1199082,109000.0,108990.0,0.4868866]
[1758889262204,0.1219082,109000.0,108990.0,0.4868866]
[1758889262705,0.1219082,109000.0,108990.0,0.3952]
[1758889263704,0.1351682,109000.0,108990.0,0.3952]
[1758889264394,0.68910695,109000.0,108990.0,0.0213]
[1758889264702,0.1351682,109000.0,108990.0,0.0213]
[1758889264908,0.1219082,109000.0,108990.0,0.03395]
[1758889265106,0.1346582,109000.0,108990.0,0.03395]
[1758889265605,0.1219082,109000.0,108990.0,0.03395]
[1758889265905,0.1219082,109000.0,108990.0,0.1256368]
[1758889266097,0.1219082,109000.0,108990.0,0.03395]
[1758889266296,0.1346582,109000.0,108990.0,0.03395]
[1758889266492,0.1346582,109000.0,108990.0,0.0213]
[1758889266699,0.84377426,109000.0,108990.0,0.0213]
[1758889267604,0.1273068,108990.0,108980.0,0.944158]
[1758889267809,0.48186483,108990.0,108980.0,1.29871603]
[1758889268304,0.48186483,108990.0,108980.0,0.44319603]
[1758889268806,0.84266483,108990.0,108980.0,0.02282]
[1758889270004,0.84266483,108990.0,108980.0,0.088638]
[1758889270204,0.84266483,108990.0,108980.0,0.02282]
[1758889270800,0.85066483,108990.0,108980.0,0.02282]
[1758889271307,0.92347188,108990.0,108980.0,0.02282]
[1758889272495,1.77863188,108990.0,108980.0,0.02282]
[1758889275405,1.77863188,108990.0,108980.0,0.39072803]
[1758889275606,1.77863188,108990.0,108980.0,0.37737803]
[1758889277613,1.77863188,108990.0,108980.0,0.02282]
[1758889277910,1.77863188,108990.0,108980.0,0.37737803]
[1758889278505,1.77863188,108990.0,108980.0,0.02282]
[1758889280709,0.1273147,108980.0,108970.0,0.45629603]
[1758889280910,0.48187273,108980.0,108970.0,0.45629603]
[1758889282606,0.46912273,108980.0,108970.0,0.54799903]
[1758889282811,0.1145647,108980.0,108970.0,0.54799903]
[1758889283417,0.1145647,108980.0,108970.0,0.193441]
[1758889283613,0.1145647,108980.0,108970.0,0.54799903]
[1758889283814,0.1145647,108980.0,108970.0,0.45629603]
[1758889284209,0.46912273,108980.0,108970.0,0.45629603]
[1758889285712,0.46912273,108980.0,108970.0,0.54799923]
[1758889285914,0.46912273,108980.0,108970.0,0.45629603]
[1758889286210,0.48187273,108980.0,108970.0,0.45629603]
[1758889287016,0.48187273,108980.0,108970.0,0.44319603]
[1758889287404,0.48187273,108980.0,108970.0,0.53489923]
[1758889287812,0.83643076,108980.0,108970.0,0.065818]
[1758889288016,0.1273316,108960.0,108950.0,0.065818]
[1758889288319,0.9823316,108960.0,108950.0,0.02282]
[1758889288618,1.3431316,108960.0,108950.0,0.02282]
[1758889288809,2.05224766,108960.0,108950.0,0.02282]
[1758889289010,1.19724766,108960.0,108950.0,0.02282]
[1758889289210,1.3474116,108960.0,108950.0,0.39072803]
[1758889289512,1.32841963,108960.0,108950.0,0.04817]
[1758889289712,1.33041963,108960.0,108950.0,0.04817]
[1758889290014,1.33641963,108960.0,108950.0,0.39072803]
[1758889290214,1.33641963,108960.0,108950.0,0.03617]
[1758889290414,1.33641963,108960.0,108950.0,0.39072803]
[1758889291307,1.34916963,108960.0,108950.0,0.39072803]
[1758889291713,0.9946116,108960.0,108950.0,0.39072803]
[1758889292010,1.35853348,108960.0,108950.0,0.39072803]
[1758889293917,1.35853348,108960.0,108950.0,0.02278]
[1758889294215,2.07389151,108960.0,108950.0,0.02278]
[1758889295917,0.1277301,108950.0,108940.0,0.02184]
[1758889296117,0.48228813,108950.0,108940.0,0.37639803]
[1758889296414,0.1277383,108940.0,108930.0,0.81636603]
[1758889296721,0.48229633,108940.0,108930.0,0.461808]
[1758889297016,1.69677436,108940.0,108930.0,0.02184]
[1758889297216,0.1277469,108930.0,108920.0,0.81636603]
[1758889297410,0.48230493,108930.0,108920.0,0.81636603]
[1758889297611,0.48230493,108930.0,108920.0,0.39599]
[1758889298518,0.48230493,108930.0,108920.0,0.02184]
[1758889299116,0.1277469,108930.0,108920.0,0.02484]
[1758889299422,0.48230493,108930.0,108920.0,0.02484]
[1758889299717,0.48230493,108930.0,108920.0,0.03684]
[1758889299913,0.1277469,108930.0,108920.0,0.03684]
[1758889300112,1.34234493,108930.0,108920.0,0.03684]
[1758889300617,1.34234493,108930.0,108920.0,0.015]
[1758889301213,1.34234493,108930.0,108920.0,0.03684]
[1758889301518,1.74234493,108930.0,108920.0,0.03684]
[1758889301822,1.34234493,108930.0,108920.0,0.015]
[1758889303116,0.9877869,108930.0,108920.0,0.03684]
[1758889303323,1.34218493,108930.0,108920.0,0.03684]
[1758889303521,0.9876269,108930.0,108920.0,0.03684]
[1758889303722,1.34238493,108930.0,108920.0,0.40466803]
[1758889303922,0.9878269,108930.0,108920.0,0.40466803]
[1758889304122,1.34238493,108930.0,108920.0,0.40466803]
[1758889304319,0.9878269,108930.0,108920.0,0.85097016]
[1758889304520,0.9748669,108930.0,108920.0,0.85097016]
[1758889304715,0.9878269,108930.0,108920.0,0.41091]
[1758889304920,1.34238493,108930.0,108920.0,0.39139803]
[1758889305121,1.34238493,108930.0,108920.0,0.05011]
[1758889305418,1.34238493,108930.0,108920.0,0.76546803]
[1758889305622,1.34238493,108930.0,108920.0,0.40466803]
[1758889305820,1.34238493,108930.0,108920.0,0.85721283]
[1758889306020,0.9748669,108930.0,108920.0,0.85721283]
[1758889306225,1.32942493,108930.0,108920.0,0.85721283]
[1758889306519,1.32942493,108930.0,108920.0,0.76546803]
[1758889306821,1.34238493,108930.0,108920.0,0.41091]
[1758889307021,1.34238493,108930.0,108920.0,0.03684]
[1758889308228,0.9878269,108930.0,108920.0,0.03684]
[1758889308427,1.34238493,108930.0,108920.0,0.03684]
[1758889309026,1.34238493,108930.0,108920.0,0.03676]
[1758889309428,0.9878269,108930.0,108920.0,0.03676]
[1758889309626,1.34238493,108930.0,108920.0,0.03676]
[1758889310527,1.34238493,108930.0,108920.0,0.39131803]
[1758889310722,1.34238493,108930.0,108920.0,0.40458803]
[1758889310927,1.34430493,108930.0,108920.0,0.40458803]
[1758889311131,1.33130493,108930.0,108920.0,0.85713283]
[1758889311429,0.9767469,108930.0,108920.0,0.85713283]
[1758889311726,1.33130493,108930.0,108920.0,0.85713283]
[1758889312130,0.1147869,108930.0,108920.0,1.21169086]
[1758889312427,0.1147869,108930.0,108920.0,0.5025748]
[1758889312728,0.1147869,108930.0,108920.0,1.21169086]
[1758889314125,0.46934493,108930.0,108920.0,0.05003]
[1758889314324,0.46934493,108930.0,108920.0,0.40458803]
[1758889314524,0.46934493,108930.0,108920.0,0.49633283]
[1758889314725,0.48230493,108930.0,108920.0,0.40458803]
[1758889315121,0.1277469,108930.0,108920.0,0.40458803]
[1758889315317,0.48230493,108930.0,108920.0,0.40458803]
[1758889315521,0.48230493,108930.0,108920.0,0.03676]
[1758889316318,0.48230493,108930.0,108920.0,0.39131803]
[1758889317026,0.48230493,108930.0,108920.0,0.49633283]
[1758889317227,1.34574493,108930.0,108920.0,0.49633283]
[1758889318428,0.1277469,108930.0,108920.0,0.49633283]
[1758889318632,0.1147869,108930.0,108920.0,0.85089086]
[1758889318834,0.1147869,108930.0,108920.0,0.1417748]
[1758889319030,0.1147869,108930.0,108920.0,0.85089086]
[1758889319628,0.1147869,108930.0,108920.0,0.1417748]
[1758889319828,0.46934493,108930.0,108920.0,0.85089086]
[1758889320127,0.46934493,108930.0,108920.0,0.49633283]
[1758889320337,0.46934493,108930.0,108920.0,0.1417748]
[1758889320530,0.1147869,108930.0,108920.0,0.52330175]
[1758889320730,0.60101865,108930.0,108920.0,0.03676]
[1758889321132,0.96181865,108930.0,108920.0,0.03676]
[1758889321334,1.36181865,108930.0,108920.0,0.01492]
[1758889321531,1.36181865,108930.0,108920.0,0.03676]
[1758889322538,0.8885469,108930.0,108920.0,0.03676]
[1758889322736,1.36181865,108930.0,108920.0,0.01492]
[1758889323735,1.38482199,108930.0,108920.0,0.0038801]
[1758889324144,1.38482199,108930.0,108920.0,0.0020868]
[1758889324640,0.1261719,108900.0,108890.0,0.462918]
[1758889324840,0.59944365,108900.0,108890.0,0.4888701]
[1758889325045,0.1135019,108900.0,108890.0,0.4888701]
[1758889325250,0.1125019,108900.0,108890.0,0.4808701]
[1758889325853,0.18644086,108900.0,108890.0,0.4808701]
[1758889326148,0.19936086,108900.0,108890.0,0.4808701]
[1758889326751,0.20036086,108900.0,108890.0,0.4808701]
[1758889326944,0.20036086,108900.0,108890.0,0.3891]
[1758889327451,0.20036086,108900.0,108890.0,0.3911]
[1758889327652,0.20036086,108900.0,108890.0,0.38583]
[1758889329056,0.20036086,108900.0,108890.0,0.4776003]
[1758889329348,0.20036086,108900.0,108890.0,0.4916003]
[1758889329751,0.18744086,108900.0,108890.0,0.1308003]
[1758889329949,0.18744086,108900.0,108890.0,0.60407205]
[1758889330145,0.18744086,108900.0,108890.0,0.96487205]
[1758889330355,0.18844076,108900.0,108890.0,0.96487205]
[1758889331453,0.18844076,108900.0,108890.0,0.4916003]
[1758889331753,0.18844076,108900.0,108890.0,0.96487205]
[1758889333659,0.16670076,108900.0,108890.0,0.96487205]
[1758889333956,0.18931076,108900.0,108890.0,0.4916003]
[1758889334158,0.18931076,108900.0,108890.0,0.96487205]
[1758889335060,0.16670076,108900.0,108890.0,0.96487205]
[1758889335653,0.18931076,108900.0,108890.0,1.82731205]
[1758889336259,0.18931076,108900.0,108890.0,1.3540403]
[1758889336465,0.18931076,108900.0,108890.0,1.82731205]
[1758889338555,0.18931076,108900.0,108890.0,1.3542403]
[1758889338760,0.20223076,108900.0,108890.0,0.4916004]
[1758889339061,0.20223076,108900.0,108890.0,1.82659215]
[1758889339356,0.67550251,108900.0,108890.0,0.4764404]
[1758889339860,0.20223076,108900.0,108890.0,0.38467]
[1758889340060,0.67550251,108900.0,108890.0,0.38467]
[1758889340357,0.67550251,108900.0,108890.0,0.38267]
[1758889340664,0.67450251,108900.0,108890.0,0.4744404]
[1758889340959,0.21523076,108900.0,108890.0,0.4744404]
[1758889342956,0.21523076,108900.0,108890.0,0.4884404]
[1758889343149,0.1851022,108900.0,108890.0,0.4884404]
[1758889343761,0.1851022,108900.0,108890.0,0.4744404]
[1758889344258,0.1851022,108900.0,108890.0,0.4884404]
[1758889348866,0.1721822,108900.0,108890.0,0.4884404]
[1758889349058,0.1721822,108900.0,108890.0,0.96171215]
[1758889349258,0.1851022,108900.0,108890.0,0.4884404]
[1758889349462,0.1851022,108900.0,108890.0,0.96171215]
[1758889350367,0.1721822,108900.0,108890.0,0.4884404]
[1758889350668,0.1851022,108900.0,108890.0,0.96171215]
[1758889351468,0.1851022,108900.0,108890.0,0.86994175]
[1758889351668,0.1851022,108900.0,108890.0,0.39667]
[1758889351860,0.1851022,108900.0,108890.0,0.4884403]
[1758889352261,0.1851022,108900.0,108890.0,0.5542583]
[1758889352765,0.1721822,108900.0,108890.0,0.5542583]
[1758889353861,0.1751822,108900.0,108890.0,0.5542583]
[1758889354069,0.1751822,108900.0,108890.0,1.02753005]
[1758889354670,0.1741822,108900.0,108890.0,1.02753005]
[1758889354868,0.1711822,108900.0,108890.0,0.5542583]
[1758889355068,0.1731822,108900.0,108890.0,0.5542583]
[1758889355370,0.1860722,108900.0,108890.0,1.02753005]
[1758889356162,0.1860722,108900.0,108890.0,0.93575975]
[1758889356574,0.1731822,108900.0,108890.0,0.93575975]
[1758889356872,0.1741822,108900.0,108890.0,0.93575975]
[1758889357573,0.1870722,108900.0,108890.0,0.462488]
[1758889357774,0.1870722,108900.0,108890.0,0.5542583]
[1758889358868,0.1870722,108900.0,108890.0,0.101688]
[1758889359069,0.66034395,108900.0,108890.0,0.087688]
[1758889362171,1.06034395,108900.0,108890.0,0.02187]
[1758889362371,0.1269403,108890.0,108880.0,0.065818]
[1758889362671,0.1269487,108880.0,108870.0,0.448228]
[1758889362878,0.60022045,108880.0,108870.0,0.448228]
[1758889364575,0.60022045,108880.0,108870.0,0.5400152]
[1758889364776,0.60022045,108880.0,108870.0,0.448228]
[1758889365179,0.60022045,108880.0,108870.0,0.5400152]
[1758889365378,0.60122045,108880.0,108870.0,0.5400152]
[1758889365672,0.1279487,108880.0,108870.0,0.5400152]
[1758889365875,0.1279487,108880.0,108870.0,0.5526352]
[1758889366478,0.1339487,108880.0,108870.0,0.5526352]
[1758889366781,0.1359487,108880.0,108870.0,0.5526352]
[1758889369180,0.1359487,108880.0,108870.0,0.5525952]
[1758889370682,0.009,108880.0,108870.0,1.02586695]
[1758889370877,0.009,108880.0,108870.0,2.28490695]
[1758889371690,0.1007788,108880.0,108870.0,1.42586695]
[1758889371883,0.1007788,108880.0,108870.0,2.21908895]
[1758889372390,0.1007788,108880.0,108870.0,1.36008895]
[1758889372591,0.60922055,108880.0,108870.0,1.3336372]
[1758889372994,0.60722055,108880.0,108870.0,1.3462572]
[1758889373186,0.1339488,108880.0,108870.0,1.3462572]
[1758889374092,0.1359488,108880.0,108870.0,1.3462572]
[1758889374290,0.1230588,108880.0,108870.0,0.96008895]
[1758889374490,0.009,108880.0,108870.0,1.36008895]
[1758889374879,0.009,108880.0,108870.0,0.8868172]
[1758889375087,0.009,108880.0,108870.0,1.36008895]
[1758889375892,0.1007787,108880.0,108870.0,2.21960895]
[1758889376099,0.0947787,108880.0,108870.0,1.36008895]
[1758889376285,0.0927787,108880.0,108870.0,2.22008895]
[1758889376593,0.0927787,108880.0,108870.0,1.7468172]
[1758889376788,0.1150587,108880.0,108870.0,1.7467372]
[1758889376990,0.1150587,108880.0,108870.0,2.22000895]
[1758889378690,0.1140587,108880.0,108870.0,2.22000895]
[1758889378887,0.1140587,108880.0,108870.0,2.22500895]
[1758889379089,0.1140587,108880.0,108870.0,2.29097377]
[1758889379484,0.1140587,108880.0,108870.0,2.28597377]
[1758889379680,0.1150587,108880.0,108870.0,2.28597377]
[1758889380290,0.60122045,108880.0,108870.0,1.41286202]
[1758889380493,0.1279487,108880.0,108870.0,1.41386202]
[1758889380793,0.001,108880.0,108870.0,2.28713377]
[1758889381393,0.001,108880.0,108870.0,2.28613377]
[1758889382595,0.001,108880.0,108870.0,2.16808463]
[1758889382781,0.0927787,108880.0,108870.0,0.95278202]
[1758889382983,0.48248131,108880.0,108870.0,1.76784463]
[1758889385192,0.48248131,108880.0,108870.0,1.76772463]
[1758889385795,0.46955131,108880.0,108870.0,1.76772463]
[1758889385998,0.46955131,108880.0,108870.0,1.41250202]
[1758889386188,0.1143287,108880.0,108870.0,1.76772463]
[1758889386383,0.001,108880.0,108870.0,1.76772463]
[1758889388194,0.0927787,108880.0,108870.0,1.76772463]
[1758889388892,0.0927787,108880.0,108870.0,1.70175981]
[1758889389596,0.0927787,108880.0,108870.0,1.3465372]
[1758889389798,0.0927787,108880.0,108870.0,1.70175981]
[1758889391194,0.1139587,108880.0,108870.0,0.84203981]
[1758889391497,0.46918131,108880.0,108870.0,1.70103981]
[1758889392496,0.1139587,108880.0,108870.0,1.70103981]
[1758889392692,0.001,108880.0,108870.0,1.70103981]
[1758889393295,0.0927787,108880.0,108870.0,1.70103981]
[1758889395104,0.44800131,108880.0,108870.0,1.70103981]
[1758889395298,0.83731392,108880.0,108870.0,0.38241]
[1758889395601,1.23731392,108880.0,108870.0,0.38241]
[1758889395802,0.5268687,108880.0,108870.0,0.38241]
[1758889396003,1.23731392,108880.0,108870.0,0.44850544]
[1758889397101,1.23731392,108880.0,108870.0,0.38241]
[1758889397899,1.23731392,108880.0,108870.0,0.08770442]
[1758889400803,1.23731392,108880.0,108870.0,0.08300442]
[1758889400804,1.59811392,108880.0,108870.0,0.08300442]
[1758889402006,1.59811392,108880.0,108870.0,0.01691]
[1758889402707,1.59811392,108880.0,108870.0,0.08300442]
[1758889403008,1.59811392,108880.0,108870.0,0.53001413]
[1758889403009,1.7454687,108880.0,108870.0,0.53001413]
[1758889403209,2.10069131,108880.0,108870.0,0.54286413]